[Event "MČR juniorů a juniorek v rapid šachu 2023"]
[Site "Czech Republic"]
[Date "2023.09.24"]
[Round "8.7"]
[White "Garabik, Marek"]
[Black "Stejskal, Michal"]
[Result "1-0"]
[TimeControl "20 min + 5 sec per move"]
[WhiteFideId "23717742"]
[BlackFideId "398195"]
[WhiteElo "1787"]
[BlackElo "1959"]

1. e4 {[%clk 00:20:07]} {[%emt 00:00:01]} e6 {[%clk 00:20:09]} {[%emt
00:00:02]} 2. d4 {[%clk 00:20:11]} d5 {[%clk 00:20:12]} 3. exd5 {[%clk
00:20:15]} exd5 {[%clk 00:20:15]} {[%emt 00:00:02]} 4. Nc3 {[%clk 00:20:19]}
{[%emt 00:00:01]} Be6 {[%clk 00:20:15]} {[%emt 00:00:05]} 5. Bd3 {[%clk
00:20:20]} {[%emt 00:00:05]} Nc6 {[%clk 00:20:18]} {[%emt 00:00:02]} 6. Nge2
{[%clk 00:20:23]} {[%emt 00:00:02]} Bd6 {[%clk 00:20:18]} {[%emt 00:00:04]} 7.
f3 {[%clk 00:20:13]} {[%emt 00:00:16]} Nge7 {[%clk 00:20:18]} {[%emt 00:00:05]}
8. Be3 {[%clk 00:20:16]} {[%emt 00:00:02]} a6 {[%clk 00:20:22]} {[%emt
00:00:02]} 9. Qd2 {[%clk 00:20:19]} {[%emt 00:00:02]} Qd7 {[%clk 00:20:26]} 10.
O-O-O {[%clk 00:20:00]} {[%emt 00:00:24]} Nb4 {[%clk 00:20:15]} {[%emt
00:00:15]} 11. h3 {[%clk 00:19:36]} {[%emt 00:00:29]} Nxd3+ {[%clk 00:20:17]}
{[%emt 00:00:03]} 12. Qxd3 {[%clk 00:19:40]} {[%emt 00:00:01]} O-O-O {[%clk
00:20:02]} {[%emt 00:00:20]} 13. g4 {[%clk 00:19:25]} {[%emt 00:00:20]} Nc6
{[%clk 00:19:10]} {[%emt 00:00:56]} 14. Nf4 {[%clk 00:18:31]} {[%emt 00:00:59]}
Bb4 {[%clk 00:17:01]} {[%emt 00:02:15]} 15. a3 {[%clk 00:18:07]} {[%emt
00:00:29]} Bxc3 {[%clk 00:16:56]} {[%emt 00:00:10]} 16. Qxc3 {[%clk 00:18:10]}
{[%emt 00:00:01]} Rhe8 {[%clk 00:16:58]} {[%emt 00:00:03]} 17. Rhe1 {[%clk
00:18:12]} {[%emt 00:00:04]} f6 {[%clk 00:16:52]} {[%emt 00:00:11]} 18. Nxe6
{[%clk 00:17:56]} {[%emt 00:00:21]} Rxe6 {[%clk 00:16:53]} {[%emt 00:00:04]} 19.
Bf2 {[%clk 00:17:56]} {[%emt 00:00:05]} Rde8 {[%clk 00:16:51]} {[%emt
00:00:07]} 20. Rxe6 {[%clk 00:17:50]} {[%emt 00:00:11]} Rxe6 {[%clk 00:16:53]}
{[%emt 00:00:03]} 21. Re1 {[%clk 00:17:53]} {[%emt 00:00:02]} Ne7 {[%clk
00:16:25]} {[%emt 00:00:33]} 22. Rxe6 {[%clk 00:17:15]} {[%emt 00:00:43]} Qxe6
{[%clk 00:16:28]} {[%emt 00:00:02]} 23. Qe1 {[%clk 00:17:18]} Kd7 {[%clk
00:16:32]} {[%emt 00:00:02]} 24. Kd2 {[%clk 00:15:02]} {[%emt 00:02:20]} Qb6
{[%clk 00:15:53]} {[%emt 00:00:45]} 25. Kc1 {[%clk 00:14:38]} {[%emt 00:00:29]}
f5 {[%clk 00:15:28]} {[%emt 00:00:29]} 26. Qe5 {[%clk 00:13:54]} {[%emt
00:00:49]} fxg4 {[%clk 00:15:20]} {[%emt 00:00:14]} 27. hxg4 {[%clk 00:13:41]}
{[%emt 00:00:17]} Qh6+ {[%clk 00:15:11]} {[%emt 00:00:15]} 28. Kb1 {[%clk
00:11:33]} {[%emt 00:02:13]} Qh1+ {[%clk 00:15:10]} {[%emt 00:00:05]} 29. Ka2
{[%clk 00:11:38]} Qxf3 {[%clk 00:15:13]} {[%emt 00:00:04]} 30. Bh4 {[%clk
00:11:40]} {[%emt 00:00:02]} Qf7 {[%clk 00:14:04]} {[%emt 00:01:14]} 31. Bg3
{[%clk 00:10:23]} {[%emt 00:01:22]} Qe6 {[%clk 00:12:54]} {[%emt 00:01:15]} 32.
Qxc7+ {[%clk 00:07:20]} {[%emt 00:03:07]} Ke8 {[%clk 00:12:58]} {[%emt
00:00:01]} 33. Bh4 {[%clk 00:06:41]} {[%emt 00:00:44]} b5 {[%clk 00:12:18]}
{[%emt 00:00:46]} 34. Bxe7 {[%clk 00:05:52]} {[%emt 00:00:54]} Qxe7 {[%clk
00:12:20]} {[%emt 00:00:02]} 35. Qc8+ {[%clk 00:05:57]} Kf7 {[%clk 00:12:24]}
36. Qf5+ {[%clk 00:05:57]} {[%emt 00:00:05]} Qf6 {[%clk 00:12:24]} {[%emt
00:00:05]} 37. Qxd5+ {[%clk 00:05:59]} {[%emt 00:00:03]} Qe6 {[%clk 00:12:27]}
{[%emt 00:00:01]} 38. Qxe6+ {[%clk 00:04:08]} {[%emt 00:01:57]} Kxe6 {[%clk
00:12:31]} 39. Kb1 {[%clk 00:04:12]} Kd5 {[%clk 00:12:27]} {[%emt 00:00:09]} 40.
c3 {[%clk 00:04:16]} a5 {[%clk 00:11:59]} {[%emt 00:00:33]} 41. b3 {[%clk
00:04:07]} {[%emt 00:00:14]} h6 {[%clk 00:11:46]} {[%emt 00:00:18]} 42. Kc2
{[%clk 00:04:11]} {[%emt 00:00:01]} g6 {[%clk 00:11:49]} {[%emt 00:00:02]} 43.
Kd3 {[%clk 00:04:14]} {[%emt 00:00:01]} h5 {[%clk 00:11:53]} {[%emt 00:00:01]}
44. c4+ {[%clk 00:04:18]} {[%emt 00:00:02]} Kc6 {[%clk 00:11:49]} {[%emt
00:00:08]} 45. gxh5 {[%clk 00:04:16]} {[%emt 00:00:08]} gxh5 {[%clk 00:11:52]}
{[%emt 00:00:02]} 46. Ke4 {[%clk 00:04:16]} {[%emt 00:00:05]} a4 {[%clk
00:11:55]} {[%emt 00:00:03]} 47. cxb5+ {[%clk 00:04:15]} {[%emt 00:00:06]} Kxb5
{[%clk 00:11:59]} 48. bxa4+ {[%clk 00:04:18]} {[%emt 00:00:01]} Kxa4 {[%clk
00:12:03]} {[%emt 00:00:02]} 49. d5 {[%clk 00:04:22]} Kb5 {[%clk 00:12:07]} 50.
a4+ {[%clk 00:04:25]} {[%emt 00:00:01]} Kc5 {[%clk 00:12:11]} {[%emt 00:00:01]}
51. a5 {[%clk 00:04:29]} h4 {[%clk 00:12:15]} {[%emt 00:00:02]} 52. a6 {[%clk
00:04:02]} {[%emt 00:00:32]} h3 {[%clk 00:12:02]} {[%emt 00:00:17]} 53. Kf3
{[%clk 00:04:05]} {[%emt 00:00:03]} Kb6 {[%clk 00:12:00]} {[%emt 00:00:06]} 54.
d6 {[%clk 00:04:10]} 1-0

[Event "MČR juniorů a juniorek v rapid šachu 2023"]
[Site "Czech Republic"]
[Date "2023.09.24"]
[Round "8.8"]
[White "Steinbauer, Sebastian"]
[Black "Zadrapova, Amalie"]
[Result "1-0"]
[TimeControl "20 min + 5 sec per move"]
[WhiteFideId "399272"]
[BlackFideId "23710276"]
[WhiteElo "1880"]
[BlackElo "1590"]

1. e4 {[%clk 00:20:08]} {[%emt 00:00:01]} c5 {[%clk 00:20:09]} {[%emt
00:00:01]} 2. Nf3 {[%clk 00:20:12]} {[%emt 00:00:02]} d6 {[%clk 00:20:13]} 3.
d4 {[%clk 00:20:16]} cxd4 {[%clk 00:20:16]} {[%emt 00:00:02]} 4. c3 {[%clk
00:20:21]} dxc3 {[%clk 00:20:18]} {[%emt 00:00:03]} 5. Nxc3 {[%clk 00:20:25]}
Nc6 {[%clk 00:20:09]} {[%emt 00:00:14]} 6. Bc4 {[%clk 00:20:28]} {[%emt
00:00:01]} e6 {[%clk 00:19:58]} {[%emt 00:00:16]} 7. O-O {[%clk 00:20:31]}
{[%emt 00:00:03]} Nf6 {[%clk 00:19:59]} {[%emt 00:00:04]} 8. Qe2 {[%clk
00:20:35]} Be7 {[%clk 00:19:58]} {[%emt 00:00:06]} 9. Rd1 {[%clk 00:20:39]}
{[%emt 00:00:02]} Bd7 {[%clk 00:19:34]} {[%emt 00:00:29]} 10. Bg5 {[%clk
00:19:01]} {[%emt 00:01:42]} Qb8 {[%clk 00:15:16]} {[%emt 00:04:24]} 11. Bxf6
{[%clk 00:17:26]} {[%emt 00:01:40]} Bxf6 {[%clk 00:15:01]} {[%emt 00:00:20]} 12.
Nb5 {[%clk 00:17:29]} {[%emt 00:00:02]} Be7 {[%clk 00:14:17]} {[%emt 00:00:49]}
13. Qd2 {[%clk 00:17:27]} {[%emt 00:00:06]} O-O {[%clk 00:13:18]} {[%emt
00:01:04]} 14. Nxd6 {[%clk 00:17:26]} {[%emt 00:00:07]} Rd8 {[%clk 00:11:36]}
{[%emt 00:01:47]} 15. e5 {[%clk 00:16:33]} {[%emt 00:00:57]} Be8 {[%clk
00:10:59]} {[%emt 00:00:42]} 16. Qc3 {[%clk 00:13:47]} {[%emt 00:02:49]} Nxe5
{[%clk 00:10:18]} {[%emt 00:00:48]} 17. Nxe8 {[%clk 00:13:44]} {[%emt
00:00:09]} Nxf3+ {[%clk 00:10:17]} {[%emt 00:00:06]} 18. Qxf3 {[%clk 00:13:42]}
{[%emt 00:00:06]} Rxe8 {[%clk 00:10:12]} {[%emt 00:00:11]} 19. Rd7 {[%clk
00:13:40]} {[%emt 00:00:06]} b6 {[%clk 00:07:11]} {[%emt 00:03:06]} 20. Ba6
{[%clk 00:12:23]} {[%emt 00:01:22]} Bf6 {[%clk 00:01:46]} {[%emt 00:05:30]} 21.
Bb7 {[%clk 00:12:19]} {[%emt 00:00:09]} Kf8 {[%clk 00:01:27]} {[%emt 00:00:24]}
22. Bxa8 {[%clk 00:11:41]} {[%emt 00:00:44]} Qxa8 {[%clk 00:01:31]} {[%emt
00:00:02]} 23. Qa3+ {[%clk 00:11:11]} {[%emt 00:00:33]} Re7 {[%clk 00:00:56]}
{[%emt 00:00:40]} 24. Rad1 {[%clk 00:10:47]} {[%emt 00:00:29]} Ke8 {[%clk
00:00:57]} {[%emt 00:00:04]} 25. Qa4 {[%clk 00:10:34]} {[%emt 00:00:17]} 1-0

[Event "MČR juniorů a juniorek v rapid šachu 2023"]
[Site "Czech Republic"]
[Date "2023.09.24"]
[Round "8.9"]
[White "Svacina, Tobias"]
[Black "Simunek, Jakub Simon"]
[Result "1/2-1/2"]
[TimeControl "20 min + 5 sec per move"]
[WhiteFideId "385859"]
[BlackFideId "23709464"]
[WhiteElo "1782"]
[BlackElo "1843"]

1. e4 {[%clk 00:20:08]} {[%emt 00:00:01]} e6 {[%clk 00:20:10]} {[%emt
00:00:01]} 2. d3 {[%clk 00:19:58]} {[%emt 00:00:16]} d5 {[%clk 00:20:11]}
{[%emt 00:00:03]} 3. Nd2 {[%clk 00:20:02]} Nf6 {[%clk 00:20:13]} {[%emt
00:00:03]} 4. Ngf3 {[%clk 00:20:03]} {[%emt 00:00:03]} Nc6 {[%clk 00:20:15]}
{[%emt 00:00:04]} 5. g3 {[%clk 00:20:03]} {[%emt 00:00:05]} dxe4 {[%clk
00:20:19]} {[%emt 00:00:01]} 6. dxe4 {[%clk 00:20:01]} {[%emt 00:00:07]} Bc5
{[%clk 00:20:17]} {[%emt 00:00:06]} 7. Bg2 {[%clk 00:20:01]} {[%emt 00:00:05]}
e5 {[%clk 00:20:21]} {[%emt 00:00:02]} 8. O-O {[%clk 00:20:02]} {[%emt
00:00:04]} O-O {[%clk 00:20:23]} {[%emt 00:00:02]} 9. c3 {[%clk 00:20:05]}
{[%emt 00:00:03]} a5 {[%clk 00:20:13]} {[%emt 00:00:16]} 10. Qc2 {[%clk
00:19:25]} {[%emt 00:00:44]} Qe7 {[%clk 00:20:13]} {[%emt 00:00:05]} 11. Nc4
{[%clk 00:19:20]} {[%emt 00:00:11]} b6 {[%clk 00:19:54]} {[%emt 00:00:23]} 12.
Rd1 {[%clk 00:19:07]} {[%emt 00:00:18]} Ba6 {[%clk 00:18:12]} {[%emt 00:01:47]}
13. Ne3 {[%clk 00:18:25]} {[%emt 00:00:47]} Bxe3 {[%clk 00:17:38]} {[%emt
00:00:39]} 14. Bxe3 {[%clk 00:18:29]} {[%emt 00:00:02]} Rfd8 {[%clk 00:17:42]}
15. Bg5 {[%clk 00:17:37]} {[%emt 00:00:57]} h6 {[%clk 00:17:10]} {[%emt
00:00:37]} 16. Bxf6 {[%clk 00:17:39]} {[%emt 00:00:03]} Qxf6 {[%clk 00:17:13]}
{[%emt 00:00:03]} 17. b3 {[%clk 00:15:59]} {[%emt 00:01:44]} Qe6 {[%clk
00:14:26]} {[%emt 00:02:52]} 18. Rd5 {[%clk 00:10:59]} {[%emt 00:05:05]} Rd6
{[%clk 00:09:31]} {[%emt 00:05:00]} 19. Rad1 {[%clk 00:08:52]} {[%emt
00:02:12]} Rad8 {[%clk 00:09:26]} {[%emt 00:00:10]} 20. Rxd6 {[%clk 00:05:55]}
{[%emt 00:03:02]} Rxd6 {[%clk 00:09:28]} {[%emt 00:00:04]} 21. Rd5 {[%clk
00:05:16]} {[%emt 00:00:42]} f6 {[%clk 00:05:41]} {[%emt 00:03:52]} 22. c4
{[%clk 00:02:00]} {[%emt 00:03:22]} Nb4 {[%clk 00:05:04]} {[%emt 00:00:43]} 23.
Qd2 {[%clk 00:01:16]} {[%emt 00:00:49]} Nxd5 {[%clk 00:04:08]} {[%emt
00:01:00]} 24. cxd5 {[%clk 00:01:16]} {[%emt 00:00:04]} Qg4 {[%clk 00:03:00]}
{[%emt 00:01:13]} 25. Nh4 {[%clk 00:01:13]} {[%emt 00:00:09]} Qe2 {[%clk
00:02:44]} {[%emt 00:00:21]} 26. Qc1 {[%clk 00:01:09]} {[%emt 00:00:09]} Bd3
{[%clk 00:01:24]} {[%emt 00:01:25]} 27. Nf5 {[%clk 00:01:01]} {[%emt 00:00:12]}
Qc2 {[%clk 00:00:56]} {[%emt 00:00:33]} 28. Qxc2 {[%clk 00:00:56]} {[%emt
00:00:11]} Bxc2 {[%clk 00:01:01]} 29. Nxd6 cxd6 30. Kf1 {[%clk 00:01:02]}
{[%emt 00:00:02]} Bd3+ {[%clk 00:00:17]} {[%emt 00:00:54]} 31. Ke1 {[%clk
00:01:06]} {[%emt 00:00:02]} Kf8 {[%clk 00:00:19]} {[%emt 00:00:03]} 32. Kd2
{[%clk 00:01:10]} Ba6 {[%clk 00:00:18]} {[%emt 00:00:07]} 33. Kc3 {[%clk
00:01:07]} {[%emt 00:00:08]} Ke7 {[%clk 00:00:18]} {[%emt 00:00:04]} 34. Bf3
{[%clk 00:00:53]} {[%emt 00:00:18]} Kd7 {[%clk 00:00:18]} {[%emt 00:00:06]} 35.
a3 {[%clk 00:00:57]} {[%emt 00:00:02]} Kc7 {[%clk 00:00:11]} {[%emt 00:00:11]}
36. Bh5 {[%clk 00:00:48]} {[%emt 00:00:13]} Bf1 {[%clk 00:00:12]} {[%emt
00:00:05]} 37. Bf3 {[%clk 00:00:50]} {[%emt 00:00:02]} Kb7 {[%clk 00:00:15]}
{[%emt 00:00:03]} 38. Bd1 {[%clk 00:00:48]} {[%emt 00:00:06]} Bg2 {[%clk
00:00:15]} {[%emt 00:00:05]} 39. Bc2 {[%clk 00:00:53]} Ka6 {[%clk 00:00:10]}
{[%emt 00:00:10]} 40. Bd3+ {[%clk 00:00:57]} Kb7 {[%clk 00:00:13]} {[%emt
00:00:02]} 41. Kc4 {[%clk 00:00:53]} {[%emt 00:00:09]} Bf3 {[%clk 00:00:13]}
{[%emt 00:00:04]} 42. Kc3 {[%clk 00:00:50]} {[%emt 00:00:07]} 1/2-1/2

[Event "MČR juniorů a juniorek v rapid šachu 2023"]
[Site "Czech Republic"]
[Date "2023.09.24"]
[Round "8.10"]
[White "Zadrapa, Jakub"]
[Black "Nagy, Ladislav"]
[Result "1/2-1/2"]
[TimeControl "20 min + 5 sec per move"]
[WhiteFideId "23714778"]
[BlackFideId "374300"]
[WhiteElo "1696"]
[BlackElo "2089"]

1. e4 {[%clk 00:20:08]} {[%emt 00:00:02]} c5 {[%clk 00:20:09]} {[%emt
00:00:02]} 2. Nf3 {[%clk 00:20:12]} Nc6 {[%clk 00:20:10]} {[%emt 00:00:04]} 3.
d4 {[%clk 00:20:16]} cxd4 {[%clk 00:20:14]} {[%emt 00:00:02]} 4. Nxd4 {[%clk
00:20:19]} {[%emt 00:00:01]} e6 {[%clk 00:20:17]} {[%emt 00:00:01]} 5. c4
{[%clk 00:20:22]} {[%emt 00:00:03]} Nf6 {[%clk 00:20:18]} {[%emt 00:00:04]} 6.
Nc3 {[%clk 00:20:25]} {[%emt 00:00:01]} Bb4 {[%clk 00:20:18]} {[%emt 00:00:06]}
7. Nxc6 {[%clk 00:19:42]} {[%emt 00:00:48]} bxc6 {[%clk 00:20:21]} {[%emt
00:00:01]} 8. Bd3 {[%clk 00:19:46]} {[%emt 00:00:02]} d5 {[%clk 00:19:03]}
{[%emt 00:01:22]} 9. cxd5 {[%clk 00:18:25]} {[%emt 00:01:26]} exd5 {[%clk
00:18:39]} {[%emt 00:00:29]} 10. exd5 {[%clk 00:14:18]} {[%emt 00:04:14]} Nxd5
{[%clk 00:17:37]} {[%emt 00:01:06]} 11. O-O {[%clk 00:12:38]} {[%emt 00:01:44]}
O-O {[%clk 00:14:20]} {[%emt 00:03:22]} 12. Qc2 {[%clk 00:08:16]} {[%emt
00:04:28]} h6 {[%clk 00:11:01]} {[%emt 00:03:24]} 13. Rd1 {[%clk 00:07:58]}
{[%emt 00:00:22]} Bg4 {[%clk 00:09:30]} {[%emt 00:01:36]} 14. Re1 {[%clk
00:07:19]} {[%emt 00:00:45]} Qh4 {[%clk 00:06:05]} {[%emt 00:03:30]} 15. Bd2
{[%clk 00:05:59]} {[%emt 00:01:24]} Nxc3 {[%clk 00:04:09]} {[%emt 00:02:01]} 16.
Bxc3 {[%clk 00:05:52]} {[%emt 00:00:13]} Bd6 {[%clk 00:03:54]} {[%emt
00:00:19]} 17. Be5 {[%clk 00:04:56]} {[%emt 00:01:01]} Rad8 {[%clk 00:03:18]}
{[%emt 00:00:42]} 18. Rac1 {[%clk 00:03:35]} {[%emt 00:01:27]} Bxe5 {[%clk
00:02:33]} {[%emt 00:00:49]} 19. Rxe5 {[%clk 00:03:38]} {[%emt 00:00:02]} Rd6
{[%clk 00:02:29]} {[%emt 00:00:09]} 20. Rce1 {[%clk 00:03:17]} {[%emt
00:00:25]} Be6 {[%clk 00:02:13]} {[%emt 00:00:22]} 21. Bh7+ {[%clk 00:03:00]}
{[%emt 00:00:22]} Kh8 {[%clk 00:02:10]} {[%emt 00:00:08]} 22. Bf5 {[%clk
00:03:04]} Bxf5 {[%clk 00:01:23]} {[%emt 00:00:52]} 23. Qxf5 {[%clk 00:02:48]}
{[%emt 00:00:20]} Rf6 {[%clk 00:01:05]} {[%emt 00:00:23]} 24. Qc2 {[%clk
00:02:48]} {[%emt 00:00:05]} g6 {[%clk 00:00:44]} {[%emt 00:00:27]} 25. Re8
{[%clk 00:02:21]} {[%emt 00:00:32]} Rxe8 {[%clk 00:00:44]} {[%emt 00:00:05]} 26.
Rxe8+ {[%clk 00:02:25]} Kg7 {[%clk 00:00:30]} {[%emt 00:00:19]} 27. Qc5 {[%clk
00:02:07]} {[%emt 00:00:23]} Kh7 {[%clk 00:00:24]} {[%emt 00:00:11]} 28. g3
{[%clk 00:00:47]} {[%emt 00:01:25]} Qa4 {[%clk 00:00:19]} {[%emt 00:00:11]} 29.
Rd8 {[%clk 00:00:17]} {[%emt 00:00:35]} Qe4 {[%clk 00:00:14]} {[%emt 00:00:10]}
30. Qc3 {[%clk 00:00:09]} {[%emt 00:00:13]} Qf5 {[%clk 00:00:09]} {[%emt
00:00:10]} 31. Rd2 {[%clk 00:00:07]} {[%emt 00:00:07]} Qb1+ {[%clk 00:00:07]}
{[%emt 00:00:07]} 32. Kg2 {[%clk 00:00:10]} {[%emt 00:00:01]} Qe4+ {[%clk
00:00:11]} {[%emt 00:00:02]} 33. Kg1 {[%clk 00:00:13]} {[%emt 00:00:03]} Qe1+
{[%clk 00:00:13]} {[%emt 00:00:03]} 34. Kg2 {[%clk 00:00:14]} {[%emt 00:00:04]}
Qe4+ {[%clk 00:00:12]} {[%emt 00:00:05]} 1/2-1/2

[Event "MČR juniorů a juniorek v rapid šachu 2023"]
[Site "Czech Republic"]
[Date "2023.09.24"]
[Round "8.11"]
[White "Mikolas, Petr"]
[Black "Rybackova, Lucie"]
[Result "1-0"]
[TimeControl "20 min + 5 sec per move"]
[WhiteFideId "23713224"]
[BlackFideId "23739207"]
[WhiteElo "1514"]
[BlackElo "1768"]

1. e4 {[%clk 00:20:08]} {[%emt 00:00:01]} c6 {[%clk 00:20:08]} {[%emt
00:00:03]} 2. d4 {[%clk 00:20:11]} {[%emt 00:00:02]} d5 {[%clk 00:20:12]} 3.
Nc3 {[%clk 00:20:15]} {[%emt 00:00:01]} dxe4 {[%clk 00:20:15]} {[%emt
00:00:02]} 4. Nxe4 {[%clk 00:20:19]} Nf6 {[%clk 00:20:19]} 5. Nxf6+ {[%clk
00:20:23]} {[%emt 00:00:01]} exf6 {[%clk 00:20:22]} 6. Nf3 {[%clk 00:20:27]}
Bd6 {[%clk 00:20:17]} {[%emt 00:00:10]} 7. Bd3 {[%clk 00:20:31]} {[%emt
00:00:02]} O-O {[%clk 00:20:14]} {[%emt 00:00:08]} 8. O-O {[%clk 00:20:28]}
{[%emt 00:00:08]} Bg4 {[%clk 00:19:58]} {[%emt 00:00:20]} 9. Re1 {[%clk
00:20:10]} {[%emt 00:00:23]} Qc7 {[%clk 00:19:53]} {[%emt 00:00:10]} 10. h3
{[%clk 00:20:12]} {[%emt 00:00:04]} Bh5 {[%clk 00:19:53]} {[%emt 00:00:04]} 11.
c3 {[%clk 00:20:04]} {[%emt 00:00:13]} Nd7 {[%clk 00:19:40]} {[%emt 00:00:18]}
12. Qe2 {[%clk 00:18:44]} {[%emt 00:01:25]} Nb6 {[%clk 00:18:02]} {[%emt
00:01:43]} 13. c4 {[%clk 00:16:06]} {[%emt 00:02:44]} c5 {[%clk 00:17:35]}
{[%emt 00:00:31]} 14. d5 {[%clk 00:14:36]} {[%emt 00:01:36]} Nd7 {[%clk
00:17:30]} {[%emt 00:00:10]} 15. g4 {[%clk 00:14:39]} {[%emt 00:00:01]} Bg6
{[%clk 00:17:32]} {[%emt 00:00:03]} 16. Nh4 {[%clk 00:11:45]} {[%emt 00:02:59]}
Ne5 {[%clk 00:16:22]} {[%emt 00:01:15]} 17. Bxg6 {[%clk 00:11:45]} {[%emt
00:00:06]} hxg6 {[%clk 00:16:19]} {[%emt 00:00:08]} 18. f4 {[%clk 00:11:47]}
Nd7 {[%clk 00:16:14]} {[%emt 00:00:12]} 19. Qe3 {[%clk 00:11:06]} b5 {[%emt
00:01:37]} 20. cxb5 Nb6 21. Qf3 Rfe8 22. Rd1 Re7 23. Ng2 Rae8 24. Bd2 Nc4 25.
Bc3 Ne3 26. Re1 Nxg2 {[%clk 00:15:29]} 27. Kxg2 {[%clk 00:09:34]} Bxf4 {[%clk
00:10:10]} {[%emt 00:12:06]} 28. Rxe7 {[%clk 00:05:42]} {[%emt 00:00:02]} Rxe7
{[%clk 00:10:10]} {[%emt 00:00:04]} 29. Re1 {[%clk 00:05:45]} {[%emt 00:00:02]}
Be5 {[%clk 00:06:20]} {[%emt 00:03:56]} 30. Bxe5 {[%clk 00:04:10]} {[%emt
00:01:40]} fxe5 {[%clk 00:06:16]} {[%emt 00:00:08]} 31. Qe4 {[%clk 00:03:21]}
{[%emt 00:00:55]} Qd7 {[%clk 00:06:05]} {[%emt 00:00:16]} 32. a4 {[%clk
00:02:59]} {[%emt 00:00:26]} f5 {[%clk 00:05:46]} {[%emt 00:00:24]} 33. Qc4
{[%clk 00:02:59]} {[%emt 00:00:06]} Qd6 {[%clk 00:05:29]} {[%emt 00:00:22]} 34.
Rc1 {[%clk 00:02:41]} {[%emt 00:00:22]} f4 {[%clk 00:03:31]} {[%emt 00:02:03]}
35. Qxc5 {[%clk 00:02:37]} {[%emt 00:00:10]} Qf6 {[%clk 00:02:35]} {[%emt
00:01:00]} 36. d6 {[%clk 00:02:26]} {[%emt 00:00:17]} Rd7 {[%clk 00:01:56]}
{[%emt 00:00:42]} 37. Qd5+ {[%clk 00:02:09]} {[%emt 00:00:24]} Kh7 {[%clk
00:01:55]} {[%emt 00:00:05]} 38. Rc6 {[%clk 00:02:01]} {[%emt 00:00:13]} Qh4
{[%clk 00:01:42]} {[%emt 00:00:18]} 39. Qd3 {[%clk 00:01:02]} {[%emt 00:01:05]}
e4 {[%clk 00:01:27]} {[%emt 00:00:20]} 40. Qxe4 {[%clk 00:00:51]} {[%emt
00:00:15]} Qg3+ {[%clk 00:01:30]} {[%emt 00:00:02]} 41. Kf1 {[%clk 00:00:54]}
{[%emt 00:00:02]} Qxh3+ {[%clk 00:01:33]} {[%emt 00:00:03]} 42. Qg2 {[%clk
00:00:58]} Qd3+ {[%clk 00:01:33]} {[%emt 00:00:04]} 43. Qe2 {[%clk 00:01:02]}
Qg3 {[%clk 00:00:57]} {[%emt 00:00:43]} 44. Qg2 {[%clk 00:00:27]} {[%emt
00:00:40]} Qe3 {[%clk 00:00:39]} {[%emt 00:00:23]} 45. Qe2 {[%clk 00:00:25]}
{[%emt 00:00:06]} Qh3+ {[%clk 00:00:31]} {[%emt 00:00:14]} 46. Qg2 {[%clk
00:00:29]} Qb3 {[%clk 00:00:17]} {[%emt 00:00:19]} 47. Qh2+ {[%clk 00:00:31]}
{[%emt 00:00:03]} Kg8 {[%clk 00:00:21]} 48. Rc8+ {[%clk 00:00:35]} {[%emt
00:00:01]} Kf7 {[%clk 00:00:25]} 49. Qe2 {[%clk 00:00:36]} {[%emt 00:00:05]}
Qh3+ {[%clk 00:00:22]} {[%emt 00:00:07]} 50. Qg2 {[%clk 00:00:27]} {[%emt
00:00:15]} Qd3+ {[%clk 00:00:22]} {[%emt 00:00:05]} 51. Qe2 {[%clk 00:00:22]}
{[%emt 00:00:10]} Qxd6 {[%clk 00:00:13]} {[%emt 00:00:14]} 52. Qe8+ {[%clk
00:00:24]} {[%emt 00:00:03]} Kf6 {[%clk 00:00:17]} 53. Rc6 {[%clk 00:00:22]}
{[%emt 00:00:07]} Qxc6 {[%clk 00:00:14]} {[%emt 00:00:08]} 54. bxc6 {[%clk
00:00:26]} Rd1+ {[%clk 00:00:17]} 55. Ke2 {[%clk 00:00:31]} {[%emt 00:00:01]}
Rd6 {[%clk 00:00:19]} {[%emt 00:00:02]} 56. c7 {[%clk 00:00:29]} {[%emt
00:00:08]} Re6+ 57. Qxe6+ {[%clk 00:00:32]} Kxe6 {[%clk 00:00:27]} 58. c8=Q+
{[%clk 00:00:36]} {[%emt 00:00:02]} Kd5 {[%emt 00:00:09]} 1-0